bitfinex-derivatives/quotes_BTCF0:USTF0_20250429
["timestamp","ask_amount","ask_price","bid_price","bid_amount"]
[1745937298243,0.3608,94923.0,94922.0,1.9315255]
[1745937298644,0.2105967,94935.0,94922.0,1.9315255]
[1745937298839,0.0526535,94928.0,94925.0,0.2106189]
[1745937299040,0.2106233,94923.0,94922.0,0.3641769]
[1745937299250,0.2106233,94923.0,94922.0,0.0485]
[1745937299439,0.2106233,94923.0,94922.0,0.2106255]
[1745937299961,0.2622233,94923.0,94922.0,0.2106255]
[1745937301350,0.2106255,94922.0,94921.0,0.0501]
[1745937301549,0.21063,94920.0,94919.0,1.7809918]
[1745937301745,0.21063,94920.0,94919.0,1.7106318]
[1745937301950,0.2106344,94918.0,94917.0,0.3332966]
[1745937303363,0.2106344,94918.0,94917.0,0.07036]
[1745937303751,0.0513,94919.0,94911.0,1.5]
[1745937303752,0.2633145,94912.0,94911.0,0.2106494]
[1745937304254,0.3833145,94912.0,94911.0,0.2106494]
[1745937304457,0.4348145,94912.0,94911.0,0.2106494]
[1745937305760,0.4848145,94912.0,94911.0,0.2106494]
[1745937305960,0.2106521,94910.0,94909.0,0.00782837]
[1745937306149,0.2106588,94907.0,94903.0,0.07036]
[1745937306351,0.2106588,94907.0,94904.0,0.5714654]
[1745937306560,0.2106588,94907.0,94906.0,0.37127544]
[1745937306947,0.2106588,94907.0,94906.0,0.210661]
[1745937307147,0.3306588,94907.0,94906.0,0.21850964]
[1745937307448,0.3306588,94907.0,94906.0,0.00784864]
[1745937307661,0.210661,94906.0,94905.0,0.2106624]
[1745937307848,0.263661,94906.0,94905.0,0.2106624]
[1745937308047,0.383661,94906.0,94905.0,0.2106624]
[1745937308864,0.2106721,94902.0,94901.0,0.2633386]
[1745937309062,0.2106766,94899.0,94898.0,0.0522]
[1745937309358,0.2106832,94896.0,94895.0,0.2810449]
[1745937311152,0.2596832,94896.0,94895.0,0.3319449]
[1745937311860,0.2596832,94896.0,94895.0,0.3329449]
[1745937313760,0.2596832,94896.0,94895.0,0.34082437]
[1745937314756,0.2596832,94896.0,94895.0,0.13013947]
[1745937314953,0.2596832,94896.0,94895.0,0.12913947]
[1745937315149,0.3796832,94896.0,94895.0,0.34082487]
[1745937315349,0.3796832,94896.0,94895.0,0.13013947]
[1745937315553,0.3796832,94896.0,94895.0,0.34082487]
[1745937316254,0.3796832,94896.0,94895.0,0.33982487]
[1745937316448,0.3796832,94896.0,94895.0,0.33882487]
[1745937316654,0.3796832,94896.0,94895.0,0.33982487]
[1745937317348,0.3796832,94896.0,94895.0,0.33882487]
[1745937318458,0.12,94896.0,94895.0,0.33882487]
[1745937318654,0.20721408,94920.0,94902.0,0.2106699]
[1745937318856,0.2106528,94910.0,94902.0,0.2106699]
[1745937319260,0.28406188,94943.0,94902.0,0.4360419]
[1745937319564,0.2632954,94919.0,94918.0,0.21063]
[1745937319766,0.2632954,94919.0,94918.0,0.28079]
[1745937320152,0.2632954,94919.0,94918.0,0.38039]
[1745937320357,0.001,94926.0,94922.0,0.0526562]
[1745937320555,0.001,94926.0,94925.0,0.2106189]
[1745937321358,0.001,94926.0,94925.0,0.22448131]
[1745937323368,0.001,94926.0,94925.0,0.29464131]
[1745937325357,0.2116166,94926.0,94925.0,0.29464131]
[1745937325960,0.001,94926.0,94925.0,0.29464131]
[1745937326864,0.2116166,94926.0,94925.0,0.29464131]
[1745937327265,0.001,94926.0,94925.0,0.29464131]
[1745937330460,0.5724166,94926.0,94925.0,0.07016]
[1745937330656,0.5724166,94926.0,94925.0,0.2807789]
[1745937331264,0.7929166,94926.0,94925.0,0.2807789]
[1745937331762,0.7929166,94926.0,94925.0,0.07016]
[1745937332671,0.2106189,94925.0,94924.0,0.2106204]
[1745937332876,0.2625189,94925.0,94924.0,0.2106204]
[1745937333172,0.4347189,94925.0,94924.0,0.2106204]
[1745937339977,0.2106233,94923.0,94922.0,0.2632785]
[1745937340174,0.2106322,94921.0,94920.0,0.2106288]
[1745937340370,0.2106388,94916.0,94915.0,0.01406943]
[1745937340672,0.2106388,94916.0,94915.0,0.22471043]
[1745937341065,0.3306388,94916.0,94915.0,0.210641]
[1745937341262,0.3824388,94916.0,94915.0,0.210641]
[1745937341462,0.3824388,94916.0,94915.0,0.22411687]
[1745937342678,0.3824388,94916.0,94915.0,0.210641]
[1745937342868,0.2106433,94914.0,94913.0,0.3334245]
[1745937343069,0.2106433,94914.0,94911.0,0.210648]
[1745937343070,0.2106499,94912.0,94911.0,0.210648]
[1745937343772,0.3100499,94912.0,94911.0,0.210648]
[1745937343967,0.3100499,94912.0,94911.0,0.260748]
[1745937344273,0.4300499,94912.0,94911.0,0.260748]
[1745937345271,0.4300499,94912.0,94911.0,1.760748]
[1745937345970,0.4300499,94912.0,94911.0,1.7106499]
[1745937346767,0.2194,94912.0,94911.0,1.7106499]
[1745937346972,0.12,94912.0,94911.0,1.8120499]
[1745937347177,0.210647,94913.0,94912.0,0.2106477]
[1745937347376,0.3608,94923.0,94922.0,0.2106255]
[1745937347570,0.5714233,94923.0,94922.0,0.2807455]
[1745937348080,0.6914233,94923.0,94922.0,1.7807455]
[1745937348474,0.6914233,94923.0,94922.0,0.2807455]
[1745937350175,0.5714233,94923.0,94922.0,0.2807455]
[1745937350588,0.3608,94923.0,94922.0,0.2807455]
[1745937350782,0.0526482,94937.0,94925.0,0.2106189]
[1745937350977,0.2106066,94931.0,94925.0,0.2106189]
[1745937351174,0.2106078,94930.0,94925.0,0.2106189]
[1745937351369,0.2106109,94929.0,94925.0,0.3160189]
[1745937351570,0.2116166,94926.0,94925.0,0.3160189]
[1745937352284,0.001,94926.0,94925.0,0.3160189]
[1745937354077,0.2120861,94940.0,94939.0,0.2105878]
[1745937354484,0.0015,94940.0,94939.0,0.2105878]
[1745937354885,0.2120856,94940.0,94939.0,0.2105878]
[1745937355085,0.2120856,94940.0,94939.0,0.3077878]
[1745937355283,0.0015,94940.0,94939.0,0.3197878]
[1745937355479,0.2120856,94940.0,94939.0,0.3197878]
[1745937355681,0.3608,94948.0,94947.0,0.2105701]
[1745937355878,0.5713678,94948.0,94947.0,0.2105701]
[1745937356073,0.6207678,94948.0,94947.0,0.2105701]
[1745937356474,0.6207678,94948.0,94947.0,0.3078701]
[1745937356880,0.6207678,94948.0,94947.0,0.3118701]
[1745937357081,0.7407678,94948.0,94947.0,0.3158701]
[1745937357279,0.7407678,94948.0,94947.0,0.32893648]
[1745937357584,0.7930678,94948.0,94947.0,0.32993648]
[1745937358179,0.7930678,94948.0,94947.0,0.32593648]
[1745937358480,0.7930678,94948.0,94947.0,0.3387367]
[1745937358783,0.7930678,94948.0,94947.0,0.32567032]
[1745937359377,0.7930678,94948.0,94947.0,0.3386961]
[1745937359775,0.7930678,94948.0,94947.0,0.32567032]
[1745937360578,0.7407678,94948.0,94947.0,0.32567032]
[1745937364596,0.6913678,94948.0,94947.0,0.32567032]
[1745937364789,0.4808,94948.0,94947.0,0.32567032]
[1745937365093,0.2105678,94948.0,94947.0,0.32567032]
[1745937366294,0.3305678,94948.0,94947.0,0.32567032]
[1745937366593,0.3305678,94948.0,94947.0,0.32067032]
[1745937366894,0.4362678,94948.0,94947.0,0.32067032]
[1745937367096,0.4362678,94948.0,94947.0,0.10510022]
[1745937367296,0.4362678,94948.0,94947.0,0.31567032]
[1745937368891,0.4362678,94948.0,94947.0,0.10510022]
[1745937369092,0.4362678,94948.0,94947.0,0.31567032]
[1745937369591,0.4362678,94948.0,94947.0,0.10510022]
[1745937369983,0.4362678,94948.0,94947.0,0.31567032]
[1745937370191,0.4362678,94948.0,94947.0,0.10510022]
[1745937370493,0.4362678,94948.0,94947.0,0.00780022]
[1745937370695,0.4362678,94948.0,94932.0,0.2618033]
[1745937370696,0.2106011,94933.0,94932.0,0.2618033]
[1745937370883,0.2106011,94933.0,94932.0,0.3316833]
[1745937371096,0.3306011,94933.0,94932.0,0.3316833]
[1745937371288,0.3306011,94933.0,94932.0,0.2618033]
[1745937371494,0.3306011,94933.0,94932.0,0.33967956]
[1745937371798,0.6914011,94933.0,94932.0,0.00799626]
[1745937371986,0.2106122,94928.0,94927.0,0.2804939]
[1745937372293,0.2106122,94928.0,94927.0,0.29330385]
[1745937373198,0.3817122,94928.0,94927.0,0.29330385]
[1745937373699,0.1711,94928.0,94927.0,0.29330385]
[1745937373997,0.5713834,94941.0,94940.0,0.2105856]
[1745937374300,0.6913834,94941.0,94940.0,0.2105856]
[1745937374689,0.3305834,94941.0,94940.0,0.2105856]
[1745937374885,0.3305834,94941.0,94940.0,0.3130856]
[1745937378892,0.31823875,94941.0,94940.0,0.3130856]
[1745937379396,0.10765535,94941.0,94940.0,0.3130856]
[1745937379694,0.31823875,94941.0,94940.0,0.3130856]
[1745937381992,0.10765535,94941.0,94940.0,0.32858223]
[1745937382197,0.10765535,94941.0,94940.0,0.39822223]
[1745937382898,0.10765535,94941.0,94940.0,0.39822718]
[1745937383090,0.10765535,94941.0,94940.0,0.3827256]
[1745937384896,0.10765535,94941.0,94940.0,0.7435256]
[1745937385097,0.10765535,94941.0,94940.0,0.3827256]
[1745937385495,0.258259,94952.0,94951.0,0.2105612]
[1745937386201,0.378259,94952.0,94951.0,0.3649612]
[1745937386606,0.378259,94952.0,94951.0,0.3719612]
[1745937386900,0.330559,94952.0,94951.0,0.3719612]
[1745937387103,0.12,94952.0,94951.0,0.3719612]
[1745937387403,0.12,94952.0,94951.0,0.3789612]
[1745937387598,0.330559,94952.0,94951.0,0.3789612]
[1745937387804,0.12,94952.0,94951.0,0.3789612]
[1745937388206,0.12,94952.0,94951.0,0.3719612]
[1745937388701,0.12,94952.0,94951.0,0.3649612]
[1745937389007,0.12020419,94952.0,94951.0,0.3649612]
[1745937390101,0.12020419,94952.0,94951.0,0.4702772]
[1745937390306,0.001,94956.0,94955.0,0.2105523]
[1745937391097,0.121,94956.0,94955.0,0.2105523]
[1745937391299,0.121,94956.0,94955.0,0.2615523]
[1745937396800,0.3315501,94956.0,94955.0,0.2615523]
[1745937397407,0.121,94956.0,94955.0,0.2615523]
[1745937398307,0.1713,94956.0,94955.0,0.2615523]
[1745937399213,0.3818501,94956.0,94955.0,0.06964]
[1745937399514,0.4844501,94956.0,94955.0,0.2801923]
[1745937400416,0.1713,94956.0,94955.0,0.2801923]
[1745937400914,0.1713,94956.0,94955.0,0.3330923]
[1745937401213,0.3818501,94956.0,94955.0,0.3330923]
[1745937403217,0.1713,94956.0,94955.0,0.3330923]
[1745937403510,0.3608,94967.0,94966.0,0.2105279]
[1745937403712,0.0527,94971.0,94970.0,0.2105191]
[1745937404204,0.1727,94971.0,94970.0,0.2105191]
[1745937404812,0.3832168,94971.0,94970.0,0.2619191]
[1745937405010,0.4325168,94971.0,94970.0,0.2619191]
[1745937405703,0.4325168,94971.0,94970.0,0.26976053]
[1745937406716,0.4325168,94971.0,94970.0,0.28257574]
[1745937408008,0.4325168,94971.0,94970.0,0.35221574]
[1745937411322,0.4325168,94971.0,94970.0,0.30081574]
[1745937412421,0.4325168,94971.0,94970.0,0.35211574]
[1745937414322,0.4325168,94971.0,94970.0,0.30081574]
[1745937414509,0.4325168,94971.0,94970.0,0.09029664]
[1745937414711,0.4325168,94971.0,94970.0,0.07724143]
[1745937414921,0.4325168,94971.0,94970.0,0.00784143]
[1745937415121,0.2105191,94970.0,94969.0,0.0694]
[1745937415323,0.2105191,94970.0,94969.0,0.2799213]
[1745937415624,0.3141191,94970.0,94969.0,0.2799213]
[1745937416211,0.4341191,94970.0,94969.0,0.2799213]
[1745937420719,0.3828191,94970.0,94969.0,0.2799213]
[1745937420921,0.3828191,94970.0,94969.0,0.3827213]
[1745937421120,0.1723,94970.0,94969.0,0.3827213]
[1745937421425,0.3828191,94970.0,94969.0,0.3827213]
[1745937422423,0.1723,94970.0,94969.0,0.3827213]
[1745937422624,0.12,94970.0,94969.0,0.3827213]
[1745937423021,0.0015,94975.0,94974.0,0.2105102]
[1745937423424,0.1015,94991.0,94979.0,0.0526243]
[1745937423633,0.0526192,94992.0,94991.0,0.2630772]
[1745937424219,0.1726192,94992.0,94991.0,0.2630772]
[1745937424420,0.1726192,94992.0,94991.0,0.2759256]
[1745937424823,0.3830993,94992.0,94991.0,0.3285432]
[1745937426733,0.3304801,94992.0,94991.0,0.3285432]
[1745937426931,0.12,94992.0,94991.0,0.3285432]
[1745937429335,0.3304703,94992.0,94991.0,0.3285432]
[1745937429536,0.3304703,94992.0,94991.0,0.3979432]
[1745937430335,0.12,94992.0,94991.0,0.3979432]
[1745937430640,0.3304703,94992.0,94991.0,0.3979432]
[1745937430935,0.3304703,94992.0,94991.0,0.0822484]
[1745937431144,0.2104747,94990.0,94989.0,0.0694]
[1745937431332,0.2104747,94990.0,94989.0,0.279877]
[1745937431524,0.2603747,94990.0,94989.0,0.210477]
[1745937431724,0.3123747,94990.0,94989.0,0.210477]
[1745937431929,0.3123747,94990.0,94989.0,0.22316489]
[1745937432132,0.3824747,94990.0,94989.0,0.32326489]
[1745937433533,0.172,94990.0,94989.0,0.32326489]
[1745937433742,0.6238779,94997.0,94996.0,0.2104614]
[1745937434743,0.6753779,94997.0,94996.0,0.2632614]
[1745937435040,0.7273779,94997.0,94996.0,0.2632614]
[1745937435231,0.8473779,94997.0,94996.0,0.2632614]
[1745937435433,0.2630817,94996.0,94995.0,0.2104636]
[1745937435938,0.3616817,94996.0,94995.0,0.2104636]
[1745937436134,0.4816817,94996.0,94995.0,0.2104636]
[1745937440939,0.4290659,94996.0,94995.0,0.2104636]
[1745937441142,0.1704,94996.0,94995.0,0.2104636]
[1745937441340,0.1704,94996.0,94995.0,0.2594636]
[1745937441833,0.12,94996.0,94995.0,0.2594636]
[1745937442035,0.1,95000.0,94996.0,0.0526148]
[1745937442235,0.05,95008.0,94997.0,0.1543142]
[1745937442430,0.2104328,95009.0,95008.0,0.2104326]
[1745937442633,0.2104328,95009.0,95008.0,0.3813326]
[1745937443241,0.3304328,95009.0,95008.0,0.3121326]
[1745937443440,0.3304328,95009.0,95008.0,0.3812926]
[1745937445443,0.0536046,95016.0,95012.0,0.0526063]
[1745937445743,0.0526055,95014.0,95013.0,0.15]
[1745937445943,0.0526055,95014.0,95013.0,0.5108]
[1745937446136,0.1726055,95014.0,95013.0,0.5108]
[1745937446741,0.12,95014.0,95013.0,0.7738248]
[1745937446950,0.3304216,95014.0,95013.0,0.7738248]
[1745937447644,0.01764663,98033.0,95028.0,0.2103906]
[1745937447645,0.10704867,95029.0,95028.0,0.2103906]
[1745937448243,0.22704867,95029.0,95028.0,0.2103906]
[1745937448636,0.22704867,95029.0,95028.0,0.3088906]
[1745937448945,0.12,95029.0,95028.0,0.3088906]
[1745937449735,0.12,95029.0,95028.0,0.3780506]
[1745937450536,0.3303884,95029.0,95028.0,0.3780506]
[1745937451442,0.12,95029.0,95028.0,0.39093131]
[1745937451944,0.12,95029.0,95028.0,0.39866538]
[1745937452345,0.3303884,95029.0,95028.0,0.39866538]
[1745937453235,0.2630264,95018.0,95017.0,0.2630108]
[1745937453547,0.2630038,95024.0,95023.0,0.2103994]
[1745937453747,0.2630038,95024.0,95023.0,0.3092994]
[1745937453943,0.2630038,95024.0,95023.0,0.32156052]
[1745937454145,0.4352038,95024.0,95023.0,0.32156052]
[1745937454347,0.4352038,95024.0,95023.0,0.27106052]
[1745937454544,0.4352038,95024.0,95023.0,0.01226112]
[1745937454850,0.4352038,95024.0,95023.0,0.2103994]
[1745937455149,0.4352038,95024.0,95023.0,0.22325246]
[1745937455740,0.4352038,95024.0,95023.0,0.32215246]
[1745937456348,0.3830038,95024.0,95023.0,0.32215246]
[1745937456738,0.4352038,95024.0,95023.0,0.27165246]
[1745937457351,0.4352038,95024.0,95023.0,0.22325246]
[1745937457546,0.2104016,95023.0,95022.0,0.00790775]
[1745937457739,0.2104127,95018.0,95017.0,0.34450838]
[1745937457942,0.2104127,95018.0,95017.0,0.39711188]
[1745937458137,0.3304127,95018.0,95017.0,0.02017566]
[1745937458351,0.3304127,95018.0,95017.0,0.2795749]
[1745937458646,0.12,95018.0,95017.0,0.2795749]
[1745937458853,0.3304127,95018.0,95017.0,0.2795749]
[1745937459041,0.12,95018.0,95017.0,0.2104149]
[1745937459244,0.12,95018.0,95017.0,0.3789749]
[1745937459645,0.3304127,95018.0,95017.0,0.3789749]
[1745937460947,0.3304127,95018.0,95017.0,0.38675874]
[1745937461158,0.3787127,95018.0,95017.0,0.38675874]
[1745937461946,0.1683,95018.0,95017.0,0.38675874]
[1745937462145,0.3787127,95018.0,95017.0,0.38675874]
[1745937464841,0.1683,95018.0,95017.0,0.38675874]
[1745937465046,0.3787127,95018.0,95017.0,0.38675874]
[1745937465845,0.1683,95018.0,95017.0,0.31759874]
[1745937466041,0.1683,95018.0,95017.0,0.38675874]
[1745937467846,0.12,95018.0,95017.0,0.38675874]
[1745937468153,0.6234773,95034.0,95033.0,0.2103795]
[1745937468348,0.6726773,95034.0,95033.0,0.2103795]
[1745937469151,0.3795773,95034.0,95033.0,0.2103795]
[1745937469356,0.3795773,95034.0,95033.0,0.2173795]
[1745937469552,0.4784773,95034.0,95033.0,0.2173795]
[1745937470753,0.4784773,95034.0,95033.0,0.2720795]
[1745937471550,0.1707,95034.0,95033.0,0.3412395]
[1745937473358,0.3810773,95034.0,95033.0,0.3412395]
[1745937474058,0.1707,95034.0,95033.0,0.3412395]
[1745937474257,0.3810773,95034.0,95033.0,0.3412395]
[1745937475461,0.1707,95034.0,95033.0,0.3412395]
[1745937475961,0.3810773,95034.0,95033.0,0.3412395]
[1745937476553,0.1707,95034.0,95033.0,0.3412395]
[1745937480662,0.3810773,95034.0,95033.0,0.3412395]
[1745937480861,0.1707,95034.0,95033.0,0.3412395]
[1745937481561,0.3810773,95034.0,95033.0,0.3412395]
[1745937481765,0.1707,95034.0,95033.0,0.3412395]
[1745937481966,0.3810773,95034.0,95033.0,0.3412395]
[1745937482863,0.3810773,95034.0,95033.0,0.2720795]
[1745937483066,0.3810773,95034.0,95033.0,0.3410395]
[1745937485573,0.1707,95034.0,95033.0,0.3410395]
[1745937487769,0.1707,95034.0,95033.0,0.35646631]
[1745937489071,0.09997911,95034.0,95033.0,0.35646631]
[1745937489272,0.07025268,95034.0,95033.0,0.35646631]
[1745937489567,0.07025268,95034.0,95033.0,1.85646631]
[1745937489872,0.05792211,95034.0,95033.0,1.85678507]
[1745937490071,0.05792211,95034.0,95033.0,1.96201307]
[1745937490277,0.001,95046.0,95044.0,0.2103552]
[1745937490470,0.001,95046.0,95044.0,0.58690077]
[1745937490666,0.0503,95045.0,95044.0,0.58690077]
[1745937490973,0.0503,95045.0,95044.0,0.7333152]
[1745937491186,0.1703,95045.0,95044.0,0.7333152]
[1745937492871,0.1703,95045.0,95044.0,0.74882167]
[1745937494871,0.1215,95045.0,95044.0,0.74882167]
[1745937495976,0.1215,95045.0,95044.0,0.67986167]
[1745937496176,0.1215,95045.0,95044.0,0.74882167]
[1745937498582,0.1215,95045.0,95044.0,0.74910832]
[1745937499480,0.169,95045.0,95044.0,0.74910832]
[1745937500370,0.169,95045.0,95044.0,0.74898245]
[1745937500878,0.1215,95045.0,95044.0,0.74898245]
[1745937501172,0.0845912,95045.0,95044.0,0.85419445]
[1745937502074,0.0845912,95045.0,95044.0,2.35419445]
[1745937502374,0.001,95046.0,95045.0,0.2103529]
[1745937502678,0.001,95046.0,95045.0,0.73796696]
[1745937502881,0.210302,95069.0,95068.0,0.210302]
[1745937503071,0.210302,95069.0,95068.0,0.29476406]
[1745937503279,0.2102991,95070.0,95069.0,0.2102976]
[1745937503473,0.2102991,95070.0,95069.0,1.77379966]
[1745937503677,0.3154407,95075.0,95074.0,0.2102888]
[1745937504077,0.4354407,95075.0,95074.0,0.2102888]
[1745937504474,0.4354407,95075.0,95074.0,0.3326012]
[1745937504979,0.4840407,95075.0,95074.0,0.3326012]
[1745937505483,0.4840407,95075.0,95074.0,0.34065206]
[1745937505882,0.4840407,95075.0,95074.0,0.35465206]
[1745937506188,0.4840407,95075.0,95074.0,0.35463935]
[1745937508183,0.3828676,95075.0,95074.0,0.354642]
[1745937508379,0.12,95075.0,95074.0,0.33869601]
[1745937508576,0.12,95075.0,95074.0,0.35464227]
[1745937509686,0.12,95075.0,95074.0,0.34764227]
[1745937509888,0.12,95075.0,95074.0,0.34110564]
[1745937511078,0.12,95075.0,95074.0,0.40986564]
[1745937512287,0.12,95075.0,95074.0,0.40959364]
[1745937512791,0.12,95075.0,95074.0,0.75959364]
[1745937513183,0.12,95075.0,95074.0,1.22557364]
[1745937513582,0.12,95075.0,95074.0,1.2256936]
[1745937514185,0.001,95076.0,95075.0,0.2102866]
[1745937514382,0.001,95076.0,95075.0,0.65172419]
[1745937514578,0.001,95076.0,95075.0,0.74262419]
[1745937514984,0.0015,95080.0,95079.0,0.2102777]
[1745937515180,0.0015,95080.0,95079.0,0.57653529]
[1745937515378,0.0015,95080.0,95079.0,0.68171129]
[1745937515577,0.0015,95080.0,95079.0,2.18171129]
[1745937515781,0.0015,95080.0,95079.0,1.87971129]
[1745937515984,0.0015,95080.0,95079.0,2.27371129]
[1745937516288,0.1215,95080.0,95079.0,2.27371129]
[1745937517185,0.1215,95080.0,95079.0,1.85853529]
[1745937518389,0.00045,95093.0,95079.0,1.85853529]
[1745937518390,0.00045,95093.0,95079.0,2.00825759]
[1745937518689,0.0923,95103.0,95099.0,0.2102335]
[1745937518886,0.0923,95103.0,95099.0,0.29525109]
[1745937519084,0.22271431,95100.0,95099.0,0.29525109]
[1745937519288,0.22271431,95100.0,95099.0,0.66525109]
[1745937519488,0.03204902,95120.0,95119.0,0.2101893]
[1745937519791,0.0015,95150.0,95149.0,0.210123]
[1745937520086,0.3316208,95150.0,95149.0,0.278883]
[1745937520286,0.3316208,95150.0,95149.0,0.07662551]
[1745937520487,0.3316208,95150.0,95149.0,0.28674851]
[1745937520676,0.8257446,95150.0,95149.0,0.28674851]
[1745937521085,0.8716446,95150.0,95149.0,0.28674851]
[1745937521291,0.6615238,95150.0,95149.0,0.29901687]
[1745937521689,0.8716446,95150.0,95149.0,0.08885387]
[1745937522079,0.8716446,95150.0,95149.0,0.10385387]
[1745937522279,0.8716656,95150.0,95149.0,0.31398367]
[1745937522784,0.8716656,95150.0,95149.0,0.29898367]
[1745937523591,0.6615238,95150.0,95149.0,0.29898367]
[1745937523786,0.3007238,95150.0,95149.0,0.29898367]
[1745937523982,0.2548238,95150.0,95149.0,0.29898367]
[1745937524178,0.1602196,95150.0,95149.0,0.64898367]
[1745937524379,0.1602196,95150.0,95149.0,1.89488367]
[1745937524581,0.0456,95175.0,95162.0,0.0525284]
[1745937524782,0.3608,95169.0,95165.0,0.2101087]
[1745937525189,0.121,95166.0,95165.0,0.2788287]
[1745937525894,0.101,95166.0,95165.0,0.2788287]
[1745937526489,0.101,95166.0,95165.0,0.2101087]
[1745937526688,0.101,95166.0,95165.0,0.2788287]
[1745937528489,0.101,95166.0,95165.0,0.3264287]
[1745937529392,0.101,95166.0,95157.0,0.3608]
[1745937529587,0.101,95166.0,95158.0,0.06872]
[1745937529588,0.210122,95160.0,95158.0,0.06872]
[1745937529787,0.0468,95159.0,95158.0,0.2788442]
[1745937530093,0.0468,95159.0,95147.0,0.409]
[1745937530094,0.2101418,95150.0,95140.0,0.0454]
[1745937530296,0.2101418,95150.0,95149.0,1.58881387]
[1745937530588,0.2101418,95150.0,95149.0,1.73027787]
[1745937530785,0.2560418,95150.0,95149.0,1.58881387]
[1745937531186,0.3760418,95150.0,95149.0,1.58881387]
[1745937531493,0.3760418,95150.0,95149.0,0.29895787]
[1745937531794,0.1659,95150.0,95149.0,0.29895787]
[1745937531989,0.3760418,95150.0,95149.0,0.29895787]
[1745937532193,0.1659,95150.0,95149.0,0.29895787]
[1745937532592,0.12,95150.0,95149.0,0.29895787]
[1745937532991,0.12,95150.0,95149.0,0.34645787]
[1745937533894,0.12,95150.0,95149.0,1.84645787]
[1745937534793,0.12,95150.0,95149.0,2.20725787]
[1745937534993,0.12,95150.0,95149.0,2.31235387]
[1745937535493,0.0447,95168.0,95160.0,0.2101197]
[1745937535699,0.0525201,95178.0,95157.0,0.3608]
[1745937535894,0.210085,95176.0,95171.0,0.2100955]
[1745937536095,0.2100915,95173.0,95171.0,0.2786555]
[1745937536299,0.4808,95172.0,95171.0,0.2786555]
[1745937536598,0.12,95172.0,95171.0,0.2786555]
[1745937536787,0.12,95172.0,95171.0,0.3680555]
[1745937537295,0.12,95172.0,95171.0,1.8680555]
[1745937538088,0.3300933,95172.0,95171.0,1.8239555]
[1745937538286,0.12,95172.0,95171.0,1.8239555]
[1745937538487,0.12,95172.0,95171.0,1.8309555]
[1745937539093,0.12,95172.0,95171.0,1.8680555]
[1745937540094,0.12,95172.0,95171.0,1.7994955]
[1745937540293,0.12,95172.0,95171.0,1.8680555]
[1745937540497,0.12,95172.0,95171.0,1.8239555]
[1745937541695,0.12,95172.0,95171.0,1.8398194]
[1745937543200,0.3623,95185.0,95184.0,0.2100668]
[1745937543397,0.3623,95185.0,95184.0,0.2259307]
[1745937544194,0.6923646,95185.0,95184.0,0.0158639]
[1745937544705,0.69274115,95185.0,95184.0,0.0158639]
[1745937544901,0.48267655,95185.0,95184.0,0.2259307]
[1745937545197,0.67274115,95185.0,95184.0,0.2259307]
[1745937546200,0.67274115,95185.0,95184.0,0.0158639]
[1745937546398,0.71904115,95185.0,95184.0,0.0158639]
[1745937546902,0.71904115,95185.0,95184.0,0.2259307]
[1745937547500,0.71904115,95185.0,95184.0,0.0158639]
[1745937548705,0.71904115,95185.0,95184.0,0.2259307]
[1745937548908,0.69725212,95185.0,95184.0,0.0158639]
[1745937549404,0.2101021,95168.0,95165.0,0.2101081]
[1745937549601,0.2101021,95168.0,95167.0,0.22810062]
[1745937549602,0.3608,95168.0,95167.0,0.22810062]
[1745937549999,0.72543908,95177.0,95176.0,0.2100844]
[1745937550202,0.5708825,95177.0,95176.0,0.2100844]
[1745937550394,0.3608,95177.0,95176.0,0.2100844]
[1745937551004,0.5708822,95177.0,95176.0,0.2100844]
[1745937551211,0.2626187,95173.0,95172.0,0.2100844]
[1745937551405,0.2100933,95172.0,95171.0,0.0468]
[1745937551606,0.3012933,95172.0,95171.0,0.0468]
[1745937551801,0.2101021,95168.0,95167.0,0.00157617]
[1745937552002,0.5709021,95168.0,95167.0,0.00157617]
[1745937552208,0.6909021,95168.0,95167.0,0.21168047]
[1745937553306,0.6909021,95168.0,95167.0,0.00157617]
[1745937555404,0.6909021,95168.0,95167.0,0.04657617]
[1745937556111,0.6909021,95168.0,95167.0,0.25668047]
[1745937557300,0.7375021,95168.0,95167.0,0.25668047]
[1745937557902,0.7375021,95168.0,95167.0,0.04657617]
[1745937558114,0.7375021,95168.0,95167.0,0.00157617]
[1745937558610,0.8425781,95168.0,95167.0,0.00157617]
[1745937559109,0.7375021,95168.0,95167.0,0.00157617]
[1745937560511,0.8425781,95168.0,95167.0,0.00157617]
[1745937560813,1.2556781,95168.0,95167.0,0.00157617]
[1745937561108,0.2101264,95157.0,95156.0,0.06856]
[1745937561316,0.5709264,95157.0,95156.0,0.06856]
[1745937561509,0.5709264,95157.0,95156.0,0.01637435]
[1745937562005,0.6625264,95157.0,95156.0,0.01637435]
[1745937562201,0.7825264,95157.0,95156.0,0.01637435]
[1745937564209,0.6909264,95157.0,95156.0,0.01637435]
[1745937564510,0.6909264,95157.0,95156.0,0.22650295]
[1745937564911,0.4808,95157.0,95156.0,0.22650295]
[1745937565207,0.6909264,95157.0,95156.0,0.31430295]
[1745937565401,0.6909264,95157.0,95156.0,0.06027435]
[1745937565601,0.6909264,95157.0,95156.0,0.27040295]
[1745937566009,0.6909264,95157.0,95156.0,0.27013582]
[1745937566010,0.7831264,95157.0,95156.0,0.27013582]
[1745937566207,0.7831264,95157.0,95156.0,0.31403582]
[1745937566406,0.6909264,95157.0,95156.0,0.31403582]
[1745937567407,0.6909264,95157.0,95156.0,0.06000722]
[1745937567801,0.6909264,95157.0,95156.0,0.0439]
[1745937568001,0.7830264,95157.0,95156.0,0.0439]
[1745937568404,0.2101418,95150.0,95149.0,0.23027137]
[1745937568720,0.0525322,95156.0,95149.0,0.08823133]
[1745937568910,0.690929,95157.0,95156.0,0.2101286]
[1745937569211,0.570929,95157.0,95156.0,0.2101286]
[1745937570110,0.4808,95157.0,95156.0,0.3048286]
[1745937570503,0.4808,95157.0,95156.0,0.32044518]
[1745937571717,0.6909264,95157.0,95156.0,0.32044518]
[1745937571908,0.6909264,95157.0,95156.0,0.3048286]
[1745937572412,0.6909264,95157.0,95156.0,0.3203158]
[1745937572718,0.6909264,95157.0,95156.0,0.3048286]
[1745937577611,0.6909264,95157.0,95156.0,0.0947]
[1745937577806,0.6909264,95157.0,95156.0,0.3048286]
[1745937579210,0.3301264,95157.0,95156.0,0.3048286]
[1745937579609,0.3301264,95157.0,95156.0,0.0469]
[1745937580215,0.4222264,95157.0,95156.0,0.0469]
[1745937581117,0.4222264,95157.0,95156.0,0.2570286]
[1745937581315,0.4222264,95157.0,95156.0,0.3254686]
[1745937582809,0.4222264,95157.0,95156.0,0.3409805]
[1745937583024,0.4222264,95157.0,95156.0,0.34098103]
[1745937583216,0.3301264,95157.0,95156.0,0.34098103]